bitfinex/quotes_SOLUSD_20241118
["timestamp","ask_amount","ask_price","bid_price","bid_amount"]
[1731906392340,0.09367462,243.3,243.22,9.75354991]
[1731906393255,0.12549,243.29,243.22,9.75354991]
[1731906393431,0.25098,243.29,243.23,14.3896]
[1731906393747,0.12549,243.3,243.23,14.3896]
[1731906394343,0.12549,243.3,243.23,10.2783]
[1731906394841,0.12549,243.3,243.17,26.6337]
[1731906394842,0.09367462,243.24,243.17,10.2806]
[1731906395044,9.75354991,243.22,243.17,10.2806]
[1731906395233,0.25098,243.23,243.17,20.03414991]
[1731906395945,0.25098,243.25,243.17,20.03414991]
[1731906396634,0.25098,243.25,243.17,24.14644991]
[1731906399152,0.09367462,243.24,243.17,24.14644991]
[1731906399324,0.12549,243.23,243.17,14.3929]
[1731906399526,0.25098,243.21,243.17,14.3929]
[1731906400551,0.25098,243.21,243.17,10.2806]
[1731906401926,0.25098,243.21,243.14,4.1128]
[1731906401927,0.34465462,243.17,243.03,15.0997]
[1731906402129,9.75354991,243.12,243.04,4.1144]
[1731906402648,0.25098,243.13,243.04,13.86794991]
[1731906402845,0.12549,243.13,243.04,13.86794991]
[1731906403042,0.25098,243.13,243.04,13.86794991]
[1731906403228,0.25098,243.13,243.07,20.0]
[1731906403651,0.25098,243.13,243.06,14.3997]
[1731906404532,0.25098,243.11,243.06,14.3997]
[1731906404850,0.25098,243.09,243.06,10.2855]
[1731906405428,0.25098,243.09,243.03,15.0997]
[1731906405429,0.12549,243.07,243.03,15.0997]
[1731906405628,0.25098,243.07,243.03,15.0997]
[1731906406555,0.25098,243.07,243.02,4.1148]
[1731906407531,9.75354991,243.08,243.01,10.2874]
[1731906407532,0.25098,243.05,243.01,10.2874]
[1731906407733,9.75354991,243.04,243.01,10.2874]
[1731906408036,9.75354991,243.04,242.98,4.1155]
[1731906408037,0.34465462,243.03,242.98,4.1155]
[1731906408550,0.34465462,243.03,242.97,19.2153]
[1731906409206,0.25098,243.01,242.96,10.2895]
[1731906409341,0.09367462,243.0,242.93,4.1163]
[1731906409546,0.09367462,242.98,242.93,4.1163]
[1731906409747,0.25098,242.97,242.91,14.4083]
[1731906409946,0.09367462,242.96,242.91,14.4083]
[1731906410261,0.25098,242.97,242.92,9.75354991]
[1731906410444,0.25098,242.99,242.92,9.75354991]
[1731906411549,0.25098,242.99,242.93,14.4074]
[1731906412750,160.2,243.0,242.96,9.75354991]
[1731906413165,160.2,243.05,242.96,9.75354991]
[1731906413345,23.59718904,243.14,242.93,14.4074]
[1731906413346,160.2,243.11,243.03,9.75354991]
[1731906413548,160.2,243.12,243.06,4.1142]
[1731906414764,160.2,243.12,243.04,10.2861]
[1731906414974,0.25098,243.11,243.04,14.4006]
[1731906415159,0.09367462,243.1,243.04,14.4006]
[1731906416369,0.09367462,243.1,243.04,10.2861]
[1731906417347,0.25098,243.11,243.04,10.2861]
[1731906417668,9.75354991,243.13,243.05,9.75354991]
[1731906417864,9.75354991,243.13,243.04,10.2861]
[1731906418068,0.09367462,243.12,243.04,10.2861]
[1731906418867,0.34465462,243.12,243.05,9.75354991]
[1731906419371,0.34465462,243.12,243.07,9.75354991]
[1731906419959,9.75354991,243.17,243.07,9.75354991]
[1731906420360,0.09367462,243.16,243.07,9.75354991]
[1731906420671,0.09367462,243.14,243.07,9.75354991]
[1731906421173,0.09367462,243.14,243.08,4.1138]
[1731906421357,0.21916462,243.12,243.08,4.1138]
[1731906421566,0.12549,243.11,243.08,4.1138]
[1731906423446,0.12549,243.11,243.05,29.75354991]
[1731906424075,0.09367462,243.1,243.04,10.2861]
[1731906424251,0.12549,243.07,243.04,10.2861]
[1731906424449,0.25098,243.07,243.04,10.2861]
[1731906425573,0.25098,243.07,243.04,14.4006]
[1731906426358,0.25098,243.07,243.04,10.2861]
[1731906430752,0.25098,243.07,243.03,9.75354991]
[1731906432557,0.25098,243.07,243.04,4.1145]
[1731906433786,0.25098,243.07,243.04,14.4008]
[1731906436860,0.25098,243.07,243.04,10.2863]
[1731906438086,0.25098,243.09,243.04,10.2863]
[1731906438274,0.09367462,243.08,243.04,10.2863]
[1731906443667,0.09367462,243.08,242.96,6.0061]
[1731906443668,0.34465462,243.06,242.99,10.2881]
[1731906443869,0.12549,243.03,242.99,10.2881]
[1731906444068,0.12549,243.01,242.99,10.2881]
[1731906444290,0.21916462,243.0,242.99,10.2881]
[1731906444489,0.34465462,243.0,242.99,10.2881]
[1731906444998,0.12549,242.99,242.96,4.1157]
[1731906445369,0.25098,242.99,242.96,4.1157]
[1731906445569,0.21916462,242.98,242.96,4.1157]
[1731906445774,0.25098,242.97,242.95,10.2901]
[1731906447269,0.25098,242.99,242.95,10.2901]
[1731906447572,0.25098,242.99,242.95,20.05226162]
[1731906448289,0.12549,243.05,242.97,9.76216162]
[1731906448491,0.25098,243.05,242.97,9.76216162]
[1731906448687,0.21916462,243.04,242.97,9.76216162]
[1731906448987,0.09367462,243.04,242.97,9.76216162]
[1731906449491,0.09367462,243.05,242.98,14.4044]
[1731906449796,0.09367462,243.05,242.99,9.76216162]
[1731906450164,0.09367462,243.06,242.99,9.76216162]
[1731906451000,0.12549,243.05,242.99,9.76216162]
[1731906451579,0.12549,243.05,243.0,14.4032]
[1731906452597,0.12549,243.05,243.01,9.76216162]
[1731906453102,160.2,243.11,243.03,9.76216162]
[1731906453294,13.87546162,243.12,243.03,9.76216162]
[1731906453295,0.09367462,243.09,243.03,9.76216162]
[1731906453677,0.09367462,243.09,243.04,4.1145]
[1731906454297,0.21916462,243.07,243.04,4.1145]
[1731906454507,0.12549,243.06,243.04,4.1145]
[1731906454799,0.12549,243.06,243.02,4.1147]
[1731906455794,0.12549,243.06,243.0,14.4032]
[1731906455977,0.21916462,243.03,243.0,10.288]
[1731906456179,0.34465462,243.01,243.0,10.288]
[1731906456499,0.12549,243.0,242.97,4.1156]
[1731906456702,0.09367462,242.99,242.8,0.1]
[1731906456905,0.34465462,242.95,242.87,4.1174]
[1731906457082,0.34465462,242.93,242.87,4.1174]
[1731906457280,0.34465462,242.93,242.85,14.4116]
[1731906459983,0.09367462,242.9,242.85,14.4116]
[1731906460183,0.34465462,242.9,242.85,10.294]
[1731906460479,0.34465462,242.88,242.85,10.294]
[1731906461392,0.34465462,242.88,242.82,4.1182]
[1731906461728,0.34465462,242.84,242.8,14.4149]
[1731906461912,0.34465462,242.84,242.8,10.2964]
[1731906466118,9.76216162,242.89,242.81,9.76216162]
[1731906466317,9.76216162,242.89,242.82,4.1182]
[1731906467087,16.2813,242.96,242.84,9.76216162]
[1731906467290,9.76216162,242.94,242.84,9.76216162]
[1731906468011,9.76216162,242.92,242.84,9.76216162]
[1731906468717,0.21916462,242.9,242.84,13.87986162]
[1731906468909,0.21916462,242.88,242.82,20.05776162]
[1731906469239,0.12549,242.85,242.82,10.2956]
[1731906469430,0.25098,242.85,242.82,10.2956]
[1731906469916,0.25098,242.85,242.82,14.4138]
[1731906471207,0.25098,242.85,242.82,10.2956]
[1731906473606,9.76216162,242.92,242.84,9.76216162]
[1731906474109,9.85583624,242.94,242.84,9.76216162]
[1731906474818,0.09367462,242.9,242.84,13.87986162]
[1731906474992,9.76216162,242.94,242.86,9.76216162]
[1731906475406,0.09367462,242.93,242.86,9.76216162]
[1731906475717,9.76216162,242.94,242.86,9.76216162]
[1731906476413,26.04346162,242.96,242.88,9.76216162]
[1731906476751,16.2813,242.96,242.89,14.4097]
[1731906477017,0.09367462,242.95,242.89,14.4097]
[1731906477711,0.21916462,242.95,242.89,14.4097]
[1731906477908,0.34465462,242.95,242.89,14.4097]
[1731906478109,9.76216162,242.98,242.9,9.76216162]
[1731906478303,9.76216162,243.0,242.92,9.76216162]
[1731906478524,0.09367462,242.99,242.92,9.76216162]
[1731906478692,9.76216162,243.0,242.92,9.76216162]
[1731906479630,0.09367462,242.99,242.93,4.1164]
[1731906480021,0.12549,242.98,242.94,9.76216162]
[1731906480202,0.25098,242.98,242.96,9.76216162]
[1731906480612,0.12549,242.98,242.96,9.76216162]
[1731906480805,0.09367462,243.02,242.96,9.76216162]
[1731906481009,160.29367462,243.02,242.96,9.76216162]
[1731906481208,160.2,243.02,242.96,9.76216162]
[1731906481400,160.2,243.02,242.98,9.76216162]
[1731906481716,160.2,243.02,242.99,4.1153]
[1731906481903,160.2,243.05,242.99,4.1153]
[1731906482100,160.2,243.05,242.99,14.4037]
[1731906482307,160.2,243.07,243.0,9.76216162]
[1731906482525,0.09367462,243.06,243.0,9.76216162]
[1731906482702,160.2,243.07,243.0,9.76216162]
[1731906483935,160.2,243.07,243.01,14.4026]
[1731906484217,160.2,243.07,243.0,9.76216162]
[1731906484218,0.09367462,243.03,242.96,24.16766162]
[1731906484403,0.09367462,243.03,242.96,14.4055]
[1731906484404,0.21916462,243.01,242.96,14.4055]
[1731906484604,0.09367462,242.99,242.96,14.4055]
[1731906484825,0.12549,242.98,242.96,14.4055]
[1731906489123,0.12549,242.98,242.89,16.4319]
[1731906489124,0.12549,242.98,242.93,20.0]
[1731906490436,0.25098,242.98,242.93,20.0]
[1731906490617,0.25098,242.98,242.94,14.4068]
[1731906491437,0.12549,242.96,242.94,14.4068]
[1731906491752,0.25098,242.96,242.94,10.2906]
[1731906491931,0.25098,242.96,242.9,4.1168]
[1731906491932,0.34465462,242.95,242.9,4.1168]
[1731906492109,0.09367462,242.93,242.9,4.1168]
[1731906492310,0.34465462,242.93,242.89,10.2926]
[1731906492512,160.54465462,242.93,242.89,10.2926]
[1731906497809,0.34465462,242.91,242.85,4.1177]
[1731906498031,0.09367462,242.89,242.84,10.2946]
[1731906498235,0.34465462,242.87,242.84,10.2946]
[1731906499807,160.2,242.96,242.86,20.0]
[1731906500011,160.2,242.98,242.91,9.76216162]
[1731906500740,0.09367462,242.97,242.91,9.76216162]
[1731906501115,160.2,242.98,242.93,9.76216162]
[1731906501433,160.2,243.01,242.95,9.76216162]
[1731906501811,0.09367462,243.0,242.95,9.76216162]
[1731906502511,0.09367462,243.02,242.95,9.76216162]
[1731906503133,0.09367462,243.02,242.95,24.16816162]
[1731906503334,176.3117,243.06,242.99,9.76216162]
[1731906503634,160.2,243.06,242.99,9.76216162]
[1731906504510,160.2,243.06,243.03,9.76216162]
[1731906504710,160.2,243.11,243.03,9.76216162]
[1731906505027,160.2,243.1,243.03,9.76216162]
[1731906505620,160.2,243.1,243.04,4.1145]
[1731906506418,0.34465462,243.09,243.04,4.1145]
[1731906508842,0.34465462,243.09,243.03,9.76216162]
[1731906509022,4.45845462,243.09,243.01,9.76216162]
[1731906509223,0.12549,243.06,243.03,9.76216162]
[1731906509527,0.12549,243.06,243.05,9.76216162]
[1731906509921,0.12549,243.08,243.03,9.76216162]
[1731906510121,0.12549,243.06,243.0,14.4031]
[1731906510436,0.21916462,243.05,243.03,9.76216162]
[1731906510739,0.25098,243.04,243.02,4.1148]
[1731906512938,0.12549,243.02,243.0,14.4031]
[1731906513244,0.25098,243.02,243.0,14.4031]
[1731906513821,0.09367462,243.01,243.0,10.288]
[1731906514029,0.34465462,243.01,243.0,10.288]
[1731906517442,160.2,243.07,242.97,23.63822262]
[1731906517443,0.34465462,242.98,242.97,13.876061]
[1731906517742,0.12549,242.97,242.95,14.4059]
[1731906519350,0.21916462,242.98,242.89,15.4443]
[1731906519351,0.25098,242.95,242.9,10.292]
[1731906519548,0.12549,242.95,242.91,4.1166]
[1731906519852,0.09367462,242.95,242.91,24.17056162]
[1731906520029,0.12549,242.94,242.91,24.17056162]
[1731906520230,0.25098,242.96,242.93,9.76216162]
[1731906520547,0.25098,242.96,242.95,9.76216162]
[1731906521620,0.25098,242.96,242.93,13.87846162]
[1731906521846,9.88765162,242.94,242.92,9.762161]
[1731906522024,0.09367462,242.93,242.82,9.76216162]
[1731906522222,0.34465462,242.9,242.82,19.52432362]
[1731906522425,0.34465462,242.9,242.84,9.76216162]
[1731906523752,0.34465462,242.9,242.84,13.87986162]
[1731906524255,0.34465462,242.9,242.84,4.1177]
[1731906524661,0.34465462,242.9,242.83,10.2952]
[1731906524834,10.10681624,242.9,242.83,14.4133]
[1731906525829,0.34465462,242.9,242.83,14.4133]
[1731906526031,10.10681624,242.9,242.83,14.4133]
[1731906526636,10.10681624,242.9,242.83,10.2952]
[1731906526952,10.10681624,242.88,242.8,18.5318]
[1731906527156,10.10681624,242.86,242.8,14.4133]
[1731906527358,10.10681624,242.86,242.77,20.05956162]
[1731906527650,10.10681624,242.86,242.77,36.53349762]
[1731906528057,0.34465462,242.84,242.78,4.1188]
[1731906529124,0.34465462,242.84,242.77,20.05956162]
[1731906529342,4.46265462,242.84,242.77,20.05956162]
[1731906529549,0.34465462,242.81,242.74,16.475644]
[1731906529753,0.34465462,242.81,242.73,9.76216162]
[1731906530139,0.09367462,242.79,242.72,14.4197]
[1731906530336,0.09367462,242.77,242.72,14.4197]
[1731906530544,0.25098,242.76,242.72,14.4197]
[1731906530731,0.25098,242.77,242.69,13.88246162]
[1731906531138,0.25098,242.77,242.69,24.18366162]
[1731906531341,9.76216162,242.8,242.71,9.76216162]
[1731906531640,30.09446162,242.82,242.73,9.76216162]
[1731906531946,30.09446162,242.82,242.69,14.4215]
[1731906532249,30.09446162,242.82,242.74,9.76216162]
[1731906532841,0.09367462,242.8,242.74,9.76216162]
[1731906533035,0.09367462,242.78,242.74,9.76216162]
[1731906533251,0.12549,242.77,242.74,9.76216162]
[1731906533634,15.9812,242.88,242.76,9.76216162]
[1731906533847,15.9812,242.88,242.81,9.76216162]
[1731906534067,0.09367462,242.86,242.81,9.76216162]
[1731906534541,15.9812,242.88,242.81,9.76216162]
[1731906536156,15.9812,242.88,242.81,13.88046162]
[1731906536635,15.9812,242.88,242.81,9.76216162]
[1731906536833,20.0985,242.88,242.81,9.76216162]
[1731906538341,0.34465462,242.87,242.81,9.76216162]
[1731906538655,0.34465462,242.85,242.79,9.76216162]
[1731906538855,0.34465462,242.85,242.77,9.76216162]
[1731906539235,0.34465462,242.81,242.72,24.18196162]
[1731906539431,0.34465462,242.79,242.74,9.76216162]
[1731906541161,0.34465462,242.79,242.76,9.76216162]
[1731906541548,0.34465462,242.79,242.74,13.88166162]
[1731906544134,0.34465462,242.79,242.73,4.1197]
[1731906546143,0.34465462,242.79,242.72,10.2999]
[1731906546348,0.34465462,242.79,242.73,9.76216162]
[1731906546674,0.34465462,242.77,242.71,9.76216162]
[1731906546838,0.34465462,242.77,242.69,9.76216162]
[1731906547345,0.34465462,242.77,242.73,9.76216162]
[1731906547544,0.34465462,242.77,242.72,9.76216162]
[1731906548463,0.34465462,242.77,242.7,9.76216162]
[1731906548638,0.34465462,242.75,242.68,20.06376162]
[1731906548844,14.22591624,242.77,242.68,20.06376162]
[1731906548845,0.34465462,242.73,242.68,20.06376162]
[1731906549357,0.34465462,242.73,242.66,9.76216162]
[1731906549962,160.54465462,242.73,242.66,9.76216162]
[1731906550144,164.66455462,242.73,242.66,9.76216162]
[1731906550345,164.66455462,242.73,242.64,24.18666162]
[1731906550661,0.09367462,242.7,242.62,9.76216162]
[1731906550978,0.34465462,242.68,242.62,9.76216162]
[1731906552262,0.34465462,242.68,242.61,4.1216]
[1731906552453,0.34465462,242.68,242.62,9.76216162]
[1731906552857,0.34465462,242.66,242.62,9.76216162]
[1731906553061,0.34465462,242.66,242.54,6.0474]
[1731906553062,0.09367462,242.62,242.54,25.8966]
[1731906553264,0.25098,242.61,242.55,9.76216162]
[1731906553765,0.25098,242.62,242.55,9.76216162]
[1731906554162,0.09367462,242.61,242.55,9.76216162]
[1731906554846,0.12549,242.58,242.54,10.3074]
[1731906555041,0.12549,242.6,242.55,9.76216162]
[1731906555663,0.09367462,242.6,242.55,9.76216162]
[1731906555860,0.12549,242.59,242.55,9.76216162]
[1731906556060,0.25098,242.59,242.55,9.76216162]
[1731906556372,0.25098,242.59,242.57,9.76216162]
[1731906557653,0.25098,242.59,242.55,13.88486162]
[1731906559471,0.25098,242.59,242.54,10.3074]
[1731906559472,0.09367462,242.58,242.54,10.3074]
[1731906559768,0.12549,242.56,242.54,10.3074]
[1731906560355,0.21916462,242.58,242.54,10.3074]
[1731906560558,0.25098,242.57,242.54,10.3074]
[1731906560962,0.12549,242.55,242.44,14.4365]
[1731906561169,0.12549,242.55,242.54,9.76216162]
[1731906562363,0.12549,242.55,242.54,13.88516162]
[1731906563164,9.76216162,242.63,242.54,13.88516162]
[1731906563165,160.2,242.64,242.54,24.19266162]
[1731906563371,160.2,242.69,242.63,9.76216162]
[1731906563580,160.2,242.68,242.63,9.76216162]
[1731906563776,0.09367462,242.67,242.55,20.0]
[1731906563973,0.09367462,242.65,242.6,9.76216162]
[1731906564183,160.29367462,242.65,242.6,9.76216162]
[1731906564784,13.97703624,242.65,242.58,9.76216162]
[1731906564986,0.09367462,242.63,242.58,9.76216162]
[1731906565184,0.09367462,242.63,242.56,13.88476162]
[1731906565185,0.09367462,242.61,242.56,13.88476162]
[1731906565482,0.09367462,242.61,242.56,9.76216162]
[1731906565483,0.09367462,242.59,242.56,9.76216162]
[1731906565666,0.12549,242.58,242.56,9.76216162]
[1731906566172,0.21916462,242.56,242.54,20.06966162]
[1731906566492,0.12549,242.55,242.54,20.06966162]
[1731906566826,0.12549,242.55,242.46,16.0835]
[1731906566827,0.12549,242.55,242.51,4.1234]
[1731906566952,0.09367462,242.56,242.53,9.76216162]
[1731906567156,0.09367462,242.56,242.51,14.4322]
[1731906567356,0.09367462,242.56,242.54,9.76216162]
[1731906567583,0.09367462,242.56,242.54,9.61526937]
[1731906567778,0.09367462,242.56,242.54,9.76216162]
[1731906570088,0.09367462,242.56,242.52,9.76216162]
[1731906570380,0.25098,242.57,242.52,9.76216162]
[1731906570597,160.2,242.68,242.55,9.76216162]
[1731906570778,21.5278,242.71,242.64,9.76216162]
[1731906570779,160.2,242.67,242.64,9.76216162]
[1731906570971,164.3203,242.7,242.64,9.76216162]
[1731906571479,0.09367462,242.69,242.62,9.76216162]
[1731906571687,164.3203,242.7,242.62,9.76216162]
[1731906572072,0.21916462,242.68,242.62,9.76216162]
[1731906572398,0.21916462,242.66,242.62,9.76216162]
[1731906572594,0.12549,242.64,242.62,9.76216162]
[1731906573290,0.21916462,242.66,242.62,9.76216162]
[1731906573500,0.09367462,242.64,242.62,9.76216162]
[1731906573663,0.21916462,242.64,242.62,4.1215]
[1731906573867,0.34465462,242.64,242.63,9.76216162]
[1731906574099,160.2,242.7,242.63,9.76216162]
[1731906574444,160.2,242.7,242.65,9.76216162]
[1731906574589,0.09367462,242.69,242.65,9.76216162]
[1731906575693,0.09367462,242.67,242.65,9.76216162]
[1731906576084,0.21916462,242.67,242.65,9.76216162]
[1731906576281,0.12549,242.66,242.65,9.76216162]
[1731906576671,160.2,242.73,242.66,14.4233]
[1731906576970,0.09367462,242.73,242.67,9.76216162]
[1731906577183,0.09367462,242.73,242.66,10.3024]
[1731906577184,9.85583624,242.73,242.66,10.3024]
[1731906578070,0.21916462,242.71,242.66,10.3024]
[1731906578271,0.09367462,242.69,242.66,10.3024]
[1731906578475,0.09367462,242.67,242.64,4.1212]
[1731906578993,0.12549,242.66,242.64,4.1212]
[1731906579380,9.76216162,242.71,242.64,4.1212]
[1731906579381,160.2,242.81,242.66,20.0]
[1731906579695,0.71134754,242.82,242.74,9.76216162]
[1731906579696,160.2,242.8,242.74,9.76216162]
[1731906579899,0.09367462,242.8,242.72,9.76216162]
[1731906580776,0.21916462,242.78,242.72,13.88196162]
[1731906580977,0.25098,242.75,242.72,13.88196162]
[1731906581700,0.21916462,242.74,242.72,13.88196162]
[1731906582125,0.21916462,242.74,242.69,10.3009]
[1731906582404,160.2,242.78,242.72,9.76216162]
[1731906582592,160.2,242.85,242.77,9.76216162]
[1731906582775,160.2,242.84,242.79,9.76216162]
[1731906583885,0.09367462,242.82,242.79,9.76216162]
[1731906584097,0.25098,242.81,242.79,13.88086162]
[1731906585696,0.25098,242.83,242.79,24.17776162]
[1731906585898,9.76216162,242.88,242.79,24.17776162]
[1731906586114,19.3803,242.92,242.81,9.76216162]
[1731906586115,25.02586162,242.92,242.81,9.76216162]
[1731906586414,160.2,242.91,242.83,9.76216162]
[1731906587188,0.34465462,242.9,242.84,4.1179]
[1731906587390,0.21916462,242.9,242.84,4.1179]
[1731906588903,0.25098,242.89,242.84,4.1179]
[1731906590387,0.25098,242.91,242.85,9.76216162]
[1731906590589,0.25098,242.92,242.85,9.76216162]
[1731906590797,0.25098,242.93,242.87,9.76216162]
[1731906590999,0.12549,242.94,242.87,9.76216162]
[1731906591511,160.2,242.95,242.88,14.4103]
[1731906591689,15.0083,242.98,242.89,9.76216162]
[1731906591690,160.2,242.97,242.89,9.76216162]
[1731906592205,0.09367462,242.96,242.89,9.76216162]
[1731906593004,0.12549,242.95,242.89,9.76216162]
[1731906593211,0.25098,242.95,242.9,4.1169]
[1731906593406,0.25098,242.95,242.9,14.4092]
[1731906593896,9.98132624,242.94,242.9,10.2923]
[1731906594154,0.12549,242.93,242.9,10.2923]
[1731906599524,160.2,242.96,242.9,10.2923]
[1731906600303,160.2,242.96,242.9,14.4092]
[1731906600682,0.12549,242.95,242.9,14.4092]
[1731906600904,0.09367462,242.94,242.9,14.4092]
[1731906601382,0.09367462,242.94,242.9,10.2923]
[1731906602710,9.85583624,242.94,242.9,10.2923]
[1731906603017,0.09367462,242.9,242.85,10.2941]
[1731906603219,0.09367462,242.86,242.85,10.2941]
[1731906603510,0.34465462,242.86,242.8,10.2963]
[1731906603714,0.34465462,242.81,242.72,15.0337]
[1731906603887,9.76216162,242.88,242.72,15.0337]
[1731906603888,0.34465462,242.79,242.72,15.0337]
[1731906604293,0.12549,242.77,242.71,6.5457]
[1731906604802,0.25098,242.78,242.75,10.2984]
[1731906605401,0.12549,242.78,242.75,10.2984]
[1731906606001,0.09367462,242.77,242.75,10.2984]
[1731906606205,0.21916462,242.77,242.75,10.2984]
[1731906606410,0.12549,242.75,242.73,4.1198]
[1731906606705,0.21916462,242.74,242.71,4.12]
[1731906608113,0.21916462,242.74,242.7,10.3007]
[1731906609812,0.21916462,242.74,242.7,20.06286162]
[1731906610096,160.2,242.78,242.73,14.4193]
[1731906610301,160.2,242.78,242.75,9.76216162]
[1731906610728,0.09367462,242.82,242.75,9.76216162]
[1731906611308,0.34465462,242.82,242.75,9.76216162]
[1731906612019,0.34465462,242.82,242.76,4.1192]
[1731906613090,0.34465462,242.82,242.73,9.76216162]
[1731906615197,0.34465462,242.82,242.74,14.4186]
[1731906616221,160.2,242.84,242.74,14.4186]
[1731906616222,160.2,242.84,242.79,9.76216162]
[1731906616427,160.2,242.83,242.81,9.76216162]
[1731906616722,160.2,242.88,242.81,9.76216162]
[1731906616914,0.09367462,242.86,242.81,9.76216162]
[1731906617603,0.25098,242.84,242.75,20.0]
[1731906617803,160.2,242.83,242.78,9.76216162]
[1731906618521,160.2,242.83,242.79,4.1187]
[1731906619619,160.2,242.83,242.79,14.4156]
[1731906622513,160.2,242.83,242.69,20.6024]
[1731906622514,0.34465462,242.82,242.69,20.6024]
[1731906622801,0.34465462,242.82,242.74,10.2988]
[1731906623113,0.09367462,242.8,242.74,10.2988]
[1731906623320,0.34465462,242.8,242.74,10.2988]
[1731906624015,0.34465462,242.8,242.74,14.4184]
[1731906624501,164.3178,242.85,242.77,9.76216162]
[1731906624502,0.25098,242.84,242.77,9.76216162]
[1731906624696,0.09367462,242.83,242.75,9.76216162]
[1731906624916,0.09367462,242.79,242.74,14.4184]
[1731906625597,0.09367462,242.77,242.74,10.2988]
[1731906625803,0.09367462,242.75,242.74,10.2988]
[1731906626001,0.34465462,242.75,242.74,10.2988]
[1731906628126,0.09367462,242.73,242.69,10.3008]
[1731906628297,0.21916462,242.71,242.69,14.4212]
[1731906637128,0.21916462,242.71,242.62,34.4257]
[1731906637430,0.21916462,242.71,242.67,9.76216162]
[1731906637632,0.12549,242.7,242.67,9.76216162]
[1731906637809,0.21916462,242.69,242.65,9.76216162]
[1731906638002,0.21916462,242.67,242.62,24.18786162]
[1731906638219,0.25098,242.66,242.62,24.18786162]
[1731906638422,0.21916462,242.65,242.62,24.18786162]
[1731906640208,0.21916462,242.65,242.61,30.37086162]
[1731906641137,0.12549,242.65,242.61,30.37086162]
[1731906641323,0.12549,242.65,242.61,44.79726162]
[1731906642527,0.12549,242.65,242.63,9.76216162]
[1731906643638,0.12549,242.65,242.61,20.6087]
[1731906643939,0.34465462,242.64,242.63,4.1215]
[1731906646439,0.34465462,242.64,242.62,6.26237224]
[1731906648142,0.09367462,242.68,242.62,6.26237224]
[1731906648334,0.09367462,242.68,242.63,4.1215]
[1731906649933,160.13832924,242.68,242.63,4.1215]
[1731906650321,0.09367462,242.66,242.63,4.1215]
[1731906650543,0.12549,242.65,242.63,4.1215]
[1731906650837,0.25098,242.65,242.63,4.1215]
[1731906651044,0.25098,242.65,242.54,55.0456]
[1731906651224,0.25098,242.65,242.61,6.26237224]
[1731906654022,0.25098,242.65,242.62,4.1216]
[1731906655624,0.25098,242.65,242.54,40.6151]
[1731906655819,0.25098,242.65,242.61,6.26237224]
[1731906656337,0.25098,242.65,242.55,14.4299]
[1731906656530,0.25098,242.65,242.62,6.26237224]
[1731906656948,0.25098,242.65,242.62,10.38397224]
[1731906660226,0.34465462,242.67,242.62,10.38397224]
[1731906661456,159.88930924,242.66,242.54,4.1229]
[1731906661749,15.9349,242.63,242.55,6.26237224]
[1731906662055,15.9349,242.63,242.54,6.26237224]
[1731906662348,4.46625462,242.62,242.54,6.26237224]
[1731906663255,4.46625462,242.62,242.54,10.38527224]
[1731906664750,0.34465462,242.62,242.58,6.26237224]
[1731906664950,4.1204,242.69,242.6,6.26237224]
[1731906665164,159.88930924,242.68,242.62,6.26237224]
[1731906665945,0.09367462,242.65,242.59,6.26237224]
[1731906666158,0.34465462,242.65,242.59,6.26237224]
[1731906667260,159.88930924,242.64,242.59,14.4275]
[1731906667552,15.9349,242.7,242.59,14.4275]
[1731906667853,0.09367462,242.69,242.66,6.26237224]
[1731906668434,0.12549,242.68,242.66,6.26237224]
[1731906668929,15.9349,242.7,242.66,6.26237224]
[1731906670049,0.09367462,242.69,242.6,4.1219]
[1731906670359,0.25098,242.67,242.64,6.26237224]
[1731906671252,0.09367462,242.66,242.6,10.305]
[1731906671564,0.12549,242.65,242.62,6.26237224]
[1731906673644,0.25098,242.68,242.64,6.26237224]
[1731906673840,0.25098,242.69,242.64,6.26237224]
[1731906674249,15.9349,242.7,242.66,6.26237224]
[1731906674550,0.1,242.78,242.62,4.1216]
[1731906674551,159.88930924,242.73,242.68,6.26237224]
[1731906674858,159.88930924,242.73,242.68,10.38287224]
[1731906675462,159.88930924,242.75,242.68,10.38287224]
[1731906675633,175.82420924,242.76,242.7,6.26237224]
[1731906676043,0.09367462,242.75,242.7,6.26237224]